Cogmind - Beta 14 *** ADVENTURER MODE // 2024.09.07 @ 00:46:14 Player: Ms. V3-11A Result: Destroyed by Y-45 Defender with Heavy Assault Rifle Performance ------------- Evolutions (0) 0 Regions Visited (3) 600 Robots Destroyed (34) 170 Value Destroyed (982) 982 Prototype IDs (13) 260 Alien Tech Used (0) 0 Bonus (-132) -132 TOTAL SCORE: 1880 Bonus ------- Friendly Fire -132 Cogmind --------- Core Integrity 0/250 Matter 300/300 Energy 100/100 System Corruption 0% Temperature Cool (9) Movement Rolling (120) Ox1 Location -9/Recycling Parts ------- > --- POWER (1) -------- (None) > --- PROPULSION (2) --- Subdweller Monowheel Subdweller Monowheel > --- UTILITY (2) ------ Large Storage Unit Makeshift Light Armor Plating > --- WEAPON (2) ------- Barrage Gun Battle Cannon > --- INVENTORY (15) --- Makeshift Power Source Cargo Legs Large Storage Unit Large Battery (200) High-capacity Matter Pod (200) Scrap Shield Authchip [Power] Authchip [Weapon] Subdweller Beam Cannon Battle Rifle Grenade Launcher Plasma Cutter Hammer Peak State ------------ > --- POWER ------------ (None) > --- PROPULSION ------- Subdweller Monowheel Subdweller Monowheel > --- UTILITY ---------- Large Storage Unit Makeshift Light Armor Plating > --- WEAPON ----------- Barrage Gun Battle Cannon > --- INVENTORY -------- Makeshift Power Source Cargo Legs Large Storage Unit Large Battery High-capacity Matter Pod Structural Scanner Scrap Shield Authchip [Weapon] Recalibrator Subdweller Beam Cannon Battle Rifle Grenade Launcher Hammer [Rating: 18] Favorites ----------- Power Ion Engine Engine Ion Engine Propulsion Aluminum Leg Leg Aluminum Leg Wheel Subdweller Monowheel Utility Large Storage Unit Device Structural Scanner Storage Large Storage Unit Protection Light Armor Plating Weapon Assault Rifle Energy Gun Medium Laser Energy Cannon Subdweller Beam Cannon Ballistic Gun Assault Rifle Ballistic Cannon Battle Cannon Impact Weapon Hammer Build | -11 -10 -10 -9 ------- Run | Yrd Mat Sub Rec Slots Evolved . | . . . . Power . | . . . . Propulsion . | . . . . Utility . | . . . . Weapon . | . . . . Parts Attached 39 | . 11 28 . Power 5 | . 2 3 . Engine 5 | . 2 3 . Core . | . . . . Reactor . | . . . . Propulsion 10 | . 4 6 . Treads . | . . . . Leg 6 | . 4 2 . Wheel 4 | . . 4 . Hover . | . . . . Flight . | . . . . Utility 6 | . 4 2 . Device 2 | . 2 . . Storage 2 | . 2 . . Processor . | . . . . Hackware . | . . . . Protection 2 | . . 2 . Artifact . | . . . . Weapon 18 | . 1 17 . Energy Gun 2 | . . 2 . Energy Cannon 2 | . . 2 . Ballistic Gun 8 | . 1 7 . Ballistic Cannon 3 | . . 3 . Launcher . | . . . . Special Weapon . | . . . . Impact Weapon 3 | . . 3 . Slashing Weapon . | . . . . Piercing Weapon . | . . . . Special Melee Weapon . | . . . . Unidentified Prototypes . | . . . . Parts Lost 11 | . . 11 . Power 2 | . . 2 . Propulsion 4 | . . 4 . Utility 1 | . . 1 . Weapon 4 | . . 4 . Highest Loss Streak 3 | . . 3 . To Critical Strikes 1 | . . 1 . Average Slot Usage (%) 92 | . 95 93 85 Engine 9 | . 13 9 . Leg 19 | . 27 19 . Wheel 8 | . . 8 28 Device 5 | . 10 3 . Storage 14 | . 14 14 14 Protection 6 | . . 9 14 Energy Gun 2 | . . 6 . Ballistic Gun 19 | . 27 13 14 Ballistic Cannon 5 | . . 6 14 Peak Build Rating 18 | 6 8 17 18 Average Rating 10 | 6 7 11 17 On Entrance 9 | 6 6 8 17 Naked Turns . | . . . . Heaviest Build 39 | 12 39 39 30 Greatest Support 40 | 20 20 40 20 Greatest Overweight (x) 3 | . 2 3 1 Average Overweight (x) . | . . 1 1 Largest Inventory Capacity 15 | 8 15 15 15 Average Capacity 14 | 8 13 15 15 Most Carried 15 | 5 15 15 15 Average Carried 13 | 3 11 14 14 Final Capacity 15 | 8 15 15 15 Final Carried 15 | 2 15 14 15 Class Distribution -------------------- 69% | Mutant 18% | Derelict-Mutant 12% | Scavenger-Mutant Dominant Class ---------------- Mutant | -10/Materials Mutant | -10/Subcaves Derelict-Mutant | -9/Recycling Resources | -11 -10 -10 -9 ----------- Run | Yrd Mat Sub Rec Matter Collected 1404 | 171 264 914 55 Remotely . | . . . . Salvage Created 1257 | . 482 775 . Parts 72 | . 25 47 . Haulers Intercepted 2 | . 2 . . Recyclers Shooed 2 | . 2 . . Parts Field Recycled . | . . . . Retrieved Matter . | . . . . Parts Self-Destructed 19 | . . 19 . Prevented . | . . . . Kills | -11 -10 -10 -9 ------- Run | Yrd Mat Sub Rec Combat Hostiles Destroyed 28 | . 8 20 . Guns 19 | . 8 11 . Cannons 9 | . . 9 . Classes Destroyed 9 | . 5 4 . Hauler 2 | . 2 . . Recycler 1 | . 1 . . Mechanic 1 | . 1 . . Turret 2 | . . 2 . Swarmer 7 | . 3 4 . Grunt 7 | . 5 2 . Sentry 1 | . . 1 . Artisan 1 | . . 1 . Subdweller 13 | . . 13 . Best Kill Streak 6 | . 4 6 . Combat Bots Only 4 | . 3 4 . Max Kills in Single Turn 1 | . 1 1 . Gunslinging . | . . . . Exploded . | . . . . Melee . | . . . . Uniques/NPCs Destroyed . | . . . . Combat | -11 -10 -10 -9 -------- Run | Yrd Mat Sub Rec Hostile Shots Fired 163 | . 36 125 2 Missed 45 | . 13 32 . Damage Taken 1596 | . 179 1395 22 Core 258 | . 18 219 21 Absorbed by Shields . | . . . . Ignored by Resistances 406 | . 61 339 6 Core Remaining (%) 100 | 100 . . . Volleys Fired 134 | . 28 106 . Largest 2 | . 2 2 . Hottest 160 | . 40 160 . Shots Fired 262 | . 56 206 . Gun 210 | . 56 154 . Cannon 52 | . . 52 . Launcher . | . . . . Special . | . . . . Kinetic 217 | . 56 161 . Thermal 45 | . . 45 . Explosive . | . . . . Electromagnetic . | . . . . Robot Hit Streak 65 | . 12 65 . Robot Miss Streak 3 | . 3 1 . Penetration Max . | . . . . Secondary Targets 4 | . 3 1 . Max Gunslinging Chain 1 | . 1 1 . Shots Hit Robots 172 | . 39 133 . Core Hits 68 | . 24 44 . Critical Kills 1 | . . 1 . Critical Parts Destroyed . | . . . . Critical Strikes 4 | . . 4 . Burn 2 | . . 2 . Destroy 2 | . . 2 . Melee Attacks 8 | . . 8 . Impact 8 | . . 8 . Slashing . | . . . . Piercing . | . . . . Sneak Attacks . | . . . . Combat Hostiles . | . . . . Follow-up Attacks . | . . . . Damage Inflicted 2320 | . 577 1740 3 Guns 1708 | . 536 1172 . Cannons 568 | . . 568 . Explosions . | . . . . Melee . | . . . . Ramming 44 | . 41 . 3 Kinetic 1954 | . 536 1418 . Thermal 322 | . . 322 . Explosive . | . . . . Electromagnetic . | . . . . Impact . | . . . . Slashing . | . . . . Piercing . | . . . . Highest Corruption . | . . . . Average Corruption . | . . . . Corruption Purged . | . . . . Corruption Blocked . | . . . . Overload Shots . | . . . . Overflow Damage 16 | . . 16 . Projectiles 16 | . . 16 . Explosions . | . . . . Melee . | . . . . Knockbacks 5 | . 2 3 . Impact 2 | . 2 . . Kinetic 3 | . . 3 . Secondary . | . . . . Self-Inflicted Damage 1 | . . . 1 Shots . | . . . . Rammed 1 | . . . 1 Targets Rammed 9 | . 8 . 1 Kicked 8 | . 8 . . Crushed . | . . . . Highest Temperature 33 | . 5 33 . Average Temperature 5 | . 3 5 . Received Heat Transfer 486 | . 102 375 9 Siege Activations . | . . . . Robots Corrupted . | . . . . Combat Hostiles . | . . . . Parts Fried . | . . . . Impact Corruptions . | . . . . Robots Melted . | . . . . Combat Hostiles . | . . . . Parts Melted 3 | . . 3 . Heat Transferred 962 | . . 962 . Parts Sabotaged . | . . . . Parts Stolen . | . . . . Parts Stripped . | . . . . Power Chain Reactions . | . . . . Alert | -11 -10 -10 -9 ------- Run | Yrd Mat Sub Rec Peak Influence 153 | . 153 . 90 Initial 80 | . . . 80 Average 35 | . 31 . 43 Maximum Alert Level . | . . . . Low Security (%) 100 | 100 100 . 100 Level 1 . | . . . . Level 2 . | . . . . Level 3 . | . . . . Level 4 . | . . . . Level 5 . | . . . . High Security . | . . . . Max Security . | . . . . Squads Dispatched 1 | . 1 . . Investigation 1 | . 1 . . Extermination . | . . . . Reinforcement . | . . . . Assault . | . . . . Garrison . | . . . . Intercept . | . . . . Searches Triggered . | . . . . Construction Impeded . | . . . . Haulers Reinforced . | . . . . Active Scanning Responses . | . . . . Cargo Convoy Interrupts . | . . . . Stealth | -11 -10 -10 -9 --------- Run | Yrd Mat Sub Rec Distress Signals 1 | . 1 . . Communications Jammed . | . . . . Distress Signals . | . . . . Times Spotted 43 | . 19 23 1 Peak Tracking Total 6 | . 4 6 . Tactical Retreats 2 | . . 2 . Traps | -11 -10 -10 -9 ------- Run | Yrd Mat Sub Rec Traps Triggered 9 | . 4 5 . Indirectly . | . . . . Trap Hack Attempts . | . . . . Triggered . | . . . . Disarmed . | . . . . Reprogrammed . | . . . . Reused . | . . . . Traps Extracted . | . . . . Installed . | . . . . Triggered . | . . . . Machines | -11 -10 -10 -9 ---------- Run | Yrd Mat Sub Rec Machines Disabled 2 | . . 2 . Max in Single Turn 1 | . . 1 . Machines Repaired . | . . . . Machines Dismantled . | . . . . Machines Sabotaged . | . . . . Overloaded Fab Kills . | . . . . Hacking | -11 -10 -10 -9 --------- Run | Yrd Mat Sub Rec Machines Accessed 13 | . 7 1 5 Terminals 12 | . 7 . 5 Fabricators . | . . . . Repair Stations . | . . . . Recycling Units . | . . . . Scanalyzers . | . . . . Garrison Access . | . . . . Total Hacks 38 | . 23 2 13 Successful 21 | . 13 2 6 Failed 17 | . 10 . 7 Catastrophic 3 | . 1 . 2 Database Lockouts . | . . . . Manual 29 | . 19 . 10 Terminals 36 | . 23 . 13 Fabricators . | . . . . Repair Stations . | . . . . Recycling Units . | . . . . Scanalyzers . | . . . . Garrison Access . | . . . . Terminal Hacks 14 | . 6 2 6 Record 1 | . . 1 . Part Schematic 1 | . . . 1 Robot Analysis 3 | . 3 . . Prototype ID Bank 1 | . 1 . . Terminal Index 1 | . . . 1 Registered Components 1 | . 1 . . Zone Layout 5 | . 1 . 4 Derelict Proto ID Bank 1 | . . 1 . Fabricator Hacks . | . . . . Repair Station Hacks . | . . . . Recycling Unit Hacks . | . . . . Scanalyzer . | . . . . Garrison Access Hacks . | . . . . Unauthorized Hacks 7 | . 7 . . Terminals 7 | . 7 . . Botnet 1 | . 1 . . Skim 6 | . 6 . . Fabricators . | . . . . Repair Stations . | . . . . Recycling Units . | . . . . Scanalyzers . | . . . . Garrison Access . | . . . . Data Cores Recovered . | . . . . Used . | . . . . Hacking Detections 10 | . 6 . 4 Full Trace Events 1 | . 1 . . Feedback Events . | . . . . Feedback Blocked . | . . . . Robot Schematics Acquired . | . . . . Robots Built . | . . . . Authchips . | . . . . Time . | . . . . Total Robot Build Rating . | . . . . Part Schematics Acquired 1 | . . . 1 Parts Built . | . . . . Authchips . | . . . . Time . | . . . . Total Part Build Rating . | . . . . Parts Repaired . | . . . . Time . | . . . . Parts Recycled . | . . . . Recycled Matter . | . . . . Retrieved Matter . | . . . . Retrieved Components . | . . . . Parts Scanalyzed . | . . . . Part Schematics Acquired . | . . . . Parts Damaged . | . . . . Bothacking | -11 -10 -10 -9 ------------ Run | Yrd Mat Sub Rec Used RIF Installer . | . . . . Robots Hacked . | . . . . Non-combat . | . . . . Combat . | . . . . Robot Hacks Applied . | . . . . Relay Couplers Released . | . . . . Fabnet Peak Effective % . | . . . . Robots Rewired . | . . . . Allies Hacked . | . . . . Hacks Repelled . | . . . . Allies | -11 -10 -10 -9 -------- Run | Yrd Mat Sub Rec Total Allies . | . . . . Largest Group . | . . . . Highest-Rated Group . | . . . . Highest-Rated Ally . | . . . . Total Orders . | . . . . Ally Attacks . | . . . . Total Damage . | . . . . Kills . | . . . . Allies Corrupted . | . . . . Allies Melted . | . . . . Intel | -11 -10 -10 -9 ------- Run | Yrd Mat Sub Rec Robot Analysis Total 3 | . 3 . . Derelict Logs Recovered 2 | . . 2 . Drone Launches . | . . . . Drone Recoveries . | . . . . Exploration | -11 -10 -10 -9 ------------- Run | Yrd Mat Sub Rec Turns Passed 4911 | 3 1886 2216 806 Spaces Moved 2724 | 1 849 1211 663 Core . | . . . . Treads . | . . . . Legs 1375 | 1 849 525 . Wheels 1349 | . . 686 663 Hover . | . . . . Flight . | . . . . Fastest Speed 110 | 120 120 110 120 Average Speed 149 | 120 170 150 120 Slowest Speed 330 | 120 260 330 120 Overloaded Moves . | . . . . Propulsion Burnouts . | . . . . Robots Hopped . | . . . . Cave-ins Triggered . | . . . . Exploration Rate (%) 62 | 2 97 66 83 Regions Visited 3 Branch Regions 2 Pre-discovered Areas 1 | . 1 . . Known Exits Taken . | . . . . Unknown Exits Taken 3 | 1 1 1 . Scrap Searched 13 | . . 13 . Spaces Dug 1 | . . 1 . Terrain Destroyed 2 | . . 2 . Melee 1 | . . 1 . Projectile 1 | . . 1 . AOE . | . . . . Terrain Rammed . | . . . . Walls Destroyed . | . . . . Machines Disabled . | . . . . Actions | -11 -10 -10 -9 --------- Run | Yrd Mat Sub Rec Total 3295 | 4 1226 1391 674 Wait 324 | . 311 8 5 Move 2721 | . 848 1210 663 Hop . | . . . . Pick Up 32 | . 16 13 3 Fast Attach 17 | . 9 8 . Attach 10 | . 1 9 . Detach . | . . . . Swap 12 | . 1 11 . Drop 28 | 4 4 18 2 Fire 134 | . 28 106 . Melee 8 | . . 8 . Ram 1 | . . . 1 Kick 8 | . 8 . . Crush . | . . . . Escape Stasis . | . . . . Rewire . | . . . . Trap . | . . . . Miscellaneous . | . . . . Route ------- -11/Scrapyard -10/Materials (discovered 6 exits: [*Mat x3] / [*Min x2] / *Sub) -10/Subcaves (discovered 3 exits: *Mat x2 / *Rec) -9/Recycling (discovered 1 exit: [*Fac]) History --------- Turn | Location | Event 4 | -11/Scrapyard | Discovered new exit (range 0) 4 | -11/Scrapyard | Entered Materials 151 | -10/Materials | Discovered new exit (range 11) 313 | -10/Materials | Build established: Mutant 569 | -10/Materials | Discovered new exit (range 10) 649 | -10/Materials | Discovered new exit (range 11) 970 | -10/Materials | Discovered new exit (range 6) 1111 | -10/Materials | Discovered new exit (range 10) 1394 | -10/Materials | Discovered new exit (range 10) 1565 | -10/Materials | Learned location of 2 exits from Subcaves 1612 | -10/Materials | Learned Storage trap positions 1693 | -10/Materials | Learned Storage emergency access door positions 1720 | -10/Materials | Learned location of 3 exits from Materials 1890 | -10/Materials | Entered Subcaves 1891 | -10/Subcaves | Identified exit to Materials 2186 | -10/Subcaves | Visited 4L-MR0's lab 2249 | -10/Subcaves | Found Cargo Legs 2640 | -10/Subcaves | A swath of the cavern ceiling suddenly collapsed 2734 | -10/Subcaves | Shifting Twisted Machinery released Sub. Monowheel 3141 | -10/Subcaves | Learned Materials emergency access door positions 3234 | -10/Subcaves | Build established: Scavenger-Mutant 3471 | -10/Subcaves | Core integrity fell below 50% 3776 | -10/Subcaves | Build established: Mutant 3826 | -10/Subcaves | Lost 3 parts (1n2w) 3987 | -10/Subcaves | Disturbed a concealed Subdweller 3993 | -10/Subcaves | Core integrity fell below 20% 4001 | -10/Subcaves | Disturbed a concealed Subdweller 4087 | -10/Subcaves | Discovered new exit (range 11) 4106 | -10/Subcaves | Entered Recycling 4260 | -9/Recycling | Discovered new exit (range 5) 4323 | -9/Recycling | Build established: Derelict-Mutant 4912 | -9/Recycling | Destroyed by Y-45 Defender with Heavy Assault Rifle Last Messages --------------- >>Layout(Zone) Retrieving Zone 9G layout... Downloaded map data. 04641_ Acquired 55 matter. 04697_ Connecting with Terminal... >>Layout(Zone) Retrieving Zone 3I layout... Downloaded map data. 04768_ Connecting with Terminal... >>Schematic(Arc Projector) Downloading schematic... Arc Projector Rating: 4 Schematic downloaded. >>Index(Terminals) Found 5 terminals. Downloaded coordinate data. 04804_ Dropped Structural Scanner. 04805_ Acquired Plasma Cutter. 04912_ Y-45 Defender springs to life. Map ----- +----------------------------------------------------+ | ????????????# ##########+####### | | ????????????# | | ????????????#### | | ???????????????# | | ?????############## ####### | | ?????# # """ ""#???## | | ?????# # """ T"#???## | | ?????# # """ ""#???#] | | ?????# """ """ # """ #######] | | ?????# """ """ # """ | | ?????# """ """ + | | ?????# # | | ?????# """ """ # #######+# | | ?????# """ """ # # | | ?????# """ """ + + "" | | ?????# ######### "Y | | ?????# #???????# "" | | ?????############+#???????# """ | | ????????????????# #???????# """ | | ????????????????# #???????# """ | | ????????????????# #???????# | | ????????????????# #???????######### | | ???????????????## ##????????????# # | | ??##########???# ##############?# | | ??# ##### + | | ??# """"" @/ #### | | ??# """"" # Y#?# | | ??# """"" #?? ##?# | | ??# #?? ####+#####+##### | | ??# """"" #? #???? | | ??# """"" #? #######???? | | ??# """"" # ########### | | ??# # + """T""" | | ??##+##+#### # | | ???# # | | ???# # | | ???# # | | ???# # | | ???# # | | ???# ########### | | ???# ########+##### | | ???# #???????? ### ########### | | ???# #???????? ## # # | | ???# #???????? ### # # | | ???# #???????? ## # + | | ?### #???????? ### # # | | ?#"" #???????? #?# # # | | ?#"Y #???????? #?# # # | | ?#"" #????????????# # ?# | | ?### #????????????# # ??# | +----------------------------------------------------+ Best States ------------- Heat Dissipation 25 Energy Generation 15 Energy Capacity 250 Matter Stores 300 Matter Capacity 300 Sight Range 16 Terrain Scan Density 10 Armor Coverage 150 Resistance: KI 20 Resistance: TH 20 Resistance: EX 20 Resistance: EM 20 Resistance: I 20 Resistance: S 20 Resistance: P 20 Evasion (%) 55 Offensive Hacking 10 Authchip Count 2 Item Schematics ----------------- Arc Projector | -9/Recycling | Hacked Robot Schematics ------------------ None Fabricated ------------ Nothing Alien Tech Used ----------------- None Achievements -------------- None Challenges ------------ None Game ------ Seed BarrageMasterBrace Manual? 0 Play Time 00:28:50 Cumulative 360.6 hours Start 2024.09.07 @ 00:20:49 End 2024.09.07 @ 00:46:14 Sessions 1 Manual Loads 0 Difficulty Adventurer Special Mode None Game No. 273 Rogue 63 Adventurer 184 Explorer 26 Win Type - Total 1 Types 1/0/0/0/0/0/0/0/0 Lore% 79 Gallery% 76 Achievement% 68 Wizard Run 0 Options --------- Layout 2 ASCII 0 Keyboard 0 Movement Mouse Keybinds 0 Fullscreen 0 Font 18/CogNarrow Map View 64x51 Zoom Use 0% Tactical HUD 1 Map Filters NONE Filters BRIGHTNESS(115)|SATURATION(100)|LOW_CONTRAST(0,16,30) Steam 1 RUN: aea05ce7-24d6-478c-b141-d84b943d565b